[Event "XLV Badalona Open 2019"]
[Site "Badalona"]
[Date "2019.08.08"]
[Round "7.7"]
[White "Della Morte, Pablo"]
[Black "Morales, Jhon Alexander"]
[Result "1/2-1/2"]
[ECO "B57"]
[WhiteElo "2289"]
[BlackElo "2405"]
[Annotator "NA"]
[PlyCount "111"]
[EventDate "2019.08.02"]
[EventType "swiss"]
[EventCountry "ESP"]
[SourceTitle "playchess.com"]
[Source "ChessBase"]
[SourceQuality "1"]
[TimeControl "5400+30"]

1. e4 {[%emt 0:00:00]} c5 {[%emt 0:00:00]} 2. Nf3 {[%emt 0:00:03]} Nc6 3. d4 {[%emt 0:00:28]} cxd4 {[%emt 0:00:00]} 4. Nxd4 {[%emt 0:00:00]} Nf6 {[%emt 0:00:00]} 5. Nc3 {[%emt 0:04:27]} d6 {[%emt 0:02:21]} 6. Bc4 {[%emt 0:01:05]} Bd7 {[%emt 0:02:03]} 7. O-O {[%emt 0:05:36]} g6 {[%emt 0:02:37]} 8. h3 Bg7 {[%emt 0:00:14]} 9. Be3 {[%emt 0:00:56]} O-O {[%emt 0:08:15]} 10. Bb3 {[%emt 0:00:43]} Nxd4 {[%emt 0:01:12]} 11. Bxd4 {[%emt 0:06:19]} Bc6 {[%emt 0:14:43]} 12. Re1 {[%emt 0:05:02]} Nd7 {[%emt 0:00:21]} 13. Bxg7 {[%emt 0:08:00]} Kxg7 {[%emt 0:00:31]} 14. Qd4+ {[%emt 0:00:20]} Kg8 {[%emt 0:04:06]} 15. a4 {[%emt 0:11:57]} Qa5 {[%emt 0:23:46]} 16. Bd5 {[%emt 0:10:18]} Rfc8 {[%emt 0:01:45]} 17. Rad1 {[%emt 0:13:44]} Qb6 {[%emt 0:02:51]} 18. Qxb6 {[%emt 0:00:29]} Nxb6 {[%emt 0:01:05]} 19. Bb3 {[%emt 0:02:24]} Nd7 {[%emt 0:02:12]} 20. f4 {[%emt 0:04:23]} Nc5 {[%emt 0:01:04]} 21. g4 {[%emt 0:00:19]} Kg7 {[%emt 0:01:30]} 22. Kf2 {[%emt 0:01:15]} a5 {[%emt 0:01:16]} 23. e5 {[%emt 0:00:11]} Nxb3 {[%emt 0:00:30]} 24. cxb3 {[%emt 0:00:06]} dxe5 {[%emt 0:07:38]} 25. Rxe5 {[%emt 0:08:17]} Ra6 {[%emt 0:01:15]} 26. Rd2 Rb6 {[%emt 0:00:06]} 27. Rxa5 {[%emt 0:00:43]} Rxb3 {[%emt 0:02:58]} 28. Rc5 {[%emt 0:05:15]} Rb4 29. Kg3 {[%emt 0:00:06]} b6 {[%emt 0:01:04]} 30. Re5 {[%emt 0:00:46]} e6 {[%emt 0:00:46]} 31. a5 {[%emt 0:00:28]} b5 {[%emt 0:00:56]} 32. Rc5 {[%emt 0:02:23]} Rb3 {[%emt 0:00:46]} 33. Kh2 {[%emt 0:00:38]} Bb7 {[%emt 0:00:04]} 34. Rxc8 {[%emt 0:00:17]} Bxc8 {[%emt 0:00:05]} 35. Ne4 {[%emt 0:00:52]} Rb4 {[%emt 0:00:47]} 36. Nd6 Bd7 {[%emt 0:00:05]} 37. Nxf7 {[%emt 0:02:25]} Kxf7 {[%emt 0:00:04]} 38. Rxd7+ {[%emt 0:00:05]} Kf6 {[%emt 0:00:24]} 39. Rxh7 {[%emt 0:06:20]} Rxf4 {[%emt 0:00:23]} 40. a6 {[%emt 0:00:19]} Rb4 {[%emt 0:00:30]} 41. a7 {[%emt 0:00:30]} Rxb2+ {[%emt 0:00:00]} 42. Kg3 {[%emt 0:00:18]} Ra2 {[%emt 0:00:35]} 43. Rb7 {[%emt 0:00:25]} b4 {[%emt 0:00:17]} 44. Kf4 {[%emt 0:00:30]} g5+ {[%emt 0:02:32]} 45. Ke4 {[%emt 0:00:51]} b3 {[%emt 0:01:35]} 46. Kd3 {[%emt 0:00:09]} b2 {[%emt 0:01:48]} 47. Kc2 {[%emt 0:00:05]} Ke5 {[%emt 0:00:12]} 48. Kb1 {[%emt 0:00:05]} Ra6 {[%emt 0:00:11]} 49. Kxb2 Kf4 {[%emt 0:00:07]} 50. Rb4+ {[%emt 0:01:59]} Ke5 {[%emt 0:00:05]} 51. Rb7 {[%emt 0:01:45]} Kf4 {[%emt 0:00:58]} 52. Kc3 {[%emt 0:00:46]} e5 {[%emt 0:00:11]} 53. Kc4 {[%emt 0:01:05]} e4 {[%emt 0:00:24]} 54. Rh7 {[%emt 0:00:37]} Ra1 {[%emt 0:00:22]} 55. Kd4 {[%emt 0:00:25]} Ra4+ 56. Kc3 1/2-1/2

[Event "XLV Badalona Open 2019"]
[Site "Badalona"]
[Date "2019.08.08"]
[Round "7.8"]
[White "Fabregas Fontanet, Antonio"]
[Black "Bru Rullo, Samuel"]
[Result "0-1"]
[ECO "B28"]
[WhiteElo "1942"]
[BlackElo "1867"]
[Annotator "NA"]
[PlyCount "64"]
[EventDate "2019.08.02"]
[EventType "swiss"]
[EventCountry "ESP"]
[SourceTitle "playchess.com"]
[Source "ChessBase"]
[SourceQuality "1"]
[TimeControl "5400+30"]

1. e4 c5 2. Nf3 {[%emt 0:01:45]} a6 {[%emt 0:00:00]} 3. d4 cxd4 {[%emt 0:00:02]} 4. Nxd4 {[%emt 0:00:24]} Nf6 {[%emt 0:00:28]} 5. Nc3 e5 {[%emt 0:00:19]} 6. Nf3 {[%emt 0:01:24]} Bb4 7. Bd3 d5 {[%emt 0:01:10]} 8. exd5 {[%emt 0:00:54]} e4 9. O-O {[%emt 0:00:37]} Bxc3 {[%emt 0:03:30]} 10. bxc3 O-O {[%emt 0:00:36]} 11. Be2 {[%emt 0:00:32]} exf3 {[%emt 0:00:07]} 12. Bxf3 {[%emt 0:00:37]} Bf5 {[%emt 0:15:55]} 13. c4 {[%emt 0:00:38]} Qc8 {[%emt 0:04:22]} 14. Qd4 {[%emt 0:00:22]} Bxc2 {[%emt 0:08:19]} 15. c5 {[%emt 0:01:54]} Re8 {[%emt 0:01:04]} 16. Bf4 {[%emt 0:00:42]} Be4 17. Rac1 {[%emt 0:00:30]} Qf5 {[%emt 0:01:54]} 18. Bxb8 Bxf3 {[%emt 0:00:52]} 19. gxf3 {[%emt 0:00:48]} Raxb8 20. Rfd1 {[%emt 0:00:16]} Qxf3 {[%emt 0:01:24]} 21. Rc3 Qg4+ {[%emt 0:00:49]} 22. Qxg4 Nxg4 23. c6 {[%emt 0:01:22]} bxc6 {[%emt 0:00:42]} 24. dxc6 {[%emt 0:00:00]} Rbc8 {[%emt 0:00:54]} 25. c7 {[%emt 0:00:57]} Nf6 {[%emt 0:00:39]} 26. f3 {[%emt 0:00:39]} g6 {[%emt 0:00:36]} 27. Rd6 {[%emt 0:00:48]} Kg7 {[%emt 0:01:15]} 28. Rc5 {[%emt 0:00:40]} Re7 29. Rxa6 Rexc7 {[%emt 0:00:44]} 30. Rxc7 {[%emt 0:00:37]} Rxc7 31. Kg2 {[%emt 0:00:21]} Nh5 {[%emt 0:00:28]} 32. h4 {[%emt 0:00:21]} Rc4 0-1

[Event "XLV Badalona Open 2019"]
[Site "Badalona"]
[Date "2019.08.08"]
[Round "7.9"]
[White "Malonda Rey, Albert"]
[Black "Korobitsyna, Olesya"]
[Result "1-0"]
[ECO "A10"]
[WhiteElo "1806"]
[BlackElo "1609"]
[Annotator "NA"]
[PlyCount "39"]
[EventDate "2019.08.02"]
[EventType "swiss"]
[EventCountry "ESP"]
[SourceTitle "playchess.com"]
[Source "ChessBase"]
[SourceQuality "1"]
[TimeControl "5400+30"]

1. c4 {[%emt 0:00:00]} g6 {[%emt 0:05:31]} 2. Nc3 {[%emt 0:00:00]} Bg7 {[%emt 0:00:33]} 3. g3 {[%emt 0:00:00]} d6 {[%emt 0:01:33]} 4. Bg2 {[%emt 0:00:11]} Nf6 5. e4 {[%emt 0:00:24]} O-O {[%emt 0:00:44]} 6. Nge2 {[%emt 0:01:10]} Nbd7 {[%emt 0:02:58]} 7. O-O {[%emt 0:03:18]} a6 {[%emt 0:00:30]} 8. d3 {[%emt 0:01:07]} Rb8 {[%emt 0:02:48]} 9. a4 {[%emt 0:01:13]} b6 {[%emt 0:00:12]} 10. h3 {[%emt 0:02:01]} Bb7 {[%emt 0:02:11]} 11. Be3 {[%emt 0:02:55]} h6 {[%emt 0:01:25]} 12. f4 {[%emt 0:04:24]} e5 {[%emt 0:12:17]} 13. Kh2 {[%emt 0:05:43]} exf4 {[%emt 0:06:08]} 14. gxf4 {[%emt 0:11:41]} Nh7 {[%emt 0:07:26]} 15. f5 {[%emt 0:19:31]} g5 {[%emt 0:00:30]} 16. Nd4 {[%emt 0:02:13]} Ne5 {[%emt 0:05:22]} 17. Nf3 {[%emt 0:01:00]} g4 {[%emt 0:14:25]} 18. Nxe5 {[%emt 0:05:48]} Bxe5+ {[%emt 0:05:22]} 19. Bf4 {[%emt 0:09:54]} h5 {[%emt 0:12:18]} 20. Qd2 1-0

[Event "XLV Badalona Open 2019"]
[Site "Badalona"]
[Date "2019.08.09"]
[Round "8.1"]
[White "Sturt, Raven"]
[Black "Rojas Keim, Luis"]
[Result "1-0"]
[ECO "A45"]
[WhiteElo "2429"]
[BlackElo "2338"]
[Annotator "NA"]
[PlyCount "29"]
[EventDate "2019.08.02"]
[EventType "swiss"]
[EventCountry "ESP"]
[SourceTitle "playchess.com"]
[Source "ChessBase"]
[SourceQuality "1"]
[TimeControl "5400+30"]

1. d4 {[%emt 0:00:00]} Nf6 {[%emt 0:00:03]} 2. e3 {[%emt 0:00:00]} e6 {[%emt 0:00:35]} 3. Bd3 {[%emt 0:00:00]} c5 {[%emt 0:00:11]} 4. c3 {[%emt 0:01:44]} Be7 {[%emt 0:02:42]} 5. Nf3 cxd4 {[%emt 0:00:11]} 6. exd4 {[%emt 0:03:36]} b6 7. Qe2 {[%emt 0:02:03]} Bb7 {[%emt 0:00:44]} 8. O-O {[%emt 0:00:07]} O-O {[%emt 0:05:39]} 9. Bg5 Nd5 {[%emt 0:00:05]} 10. Bxe7 {[%emt 0:12:10]} Qxe7 11. Be4 f5 {[%emt 0:05:40]} 12. Bxd5 {[%emt 0:01:51]} Bxd5 {[%emt 0:00:14]} 13. Nbd2 {[%emt 0:01:34]} Bb7 {[%emt 0:04:59]} 14. Rfe1 {[%emt 0:05:33]} Qd6 15. a4 1-0

[Event "XLV Badalona Open 2019"]
[Site "Badalona"]
[Date "2019.08.09"]
[Round "8.2"]
[White "Berdayes Ason, Dylan Isidro"]
[Black "Mascaro March, Pedro"]
[Result "1/2-1/2"]
[ECO "C10"]
[WhiteElo "2461"]
[BlackElo "2376"]
[Annotator "ChessBase"]
[PlyCount "79"]
[EventDate "2019.08.02"]
[EventType "swiss"]
[EventCountry "ESP"]
[SourceTitle "playchess.com"]
[Source "ChessBase"]
[SourceQuality "1"]
[TimeControl "5400+30"]

1. e4 {[%emt 0:18:19]} e6 {[%emt 0:00:00]} 2. d4 {[%emt 0:00:02]} d5 {[%emt 0:00:00]} 3. Nd2 {[%emt 0:00:02]} dxe4 {[%emt 0:00:06]} 4. Nxe4 {[%emt 0:00:28]} Bd7 {[%emt 0:00:00]} 5. Nf3 {[%emt 0:00:02]} Bc6 {[%emt 0:00:06]} 6. Bd3 {[%emt 0:01:22]} Nd7 {[%emt 0:00:13]} 7. O-O {[%emt 0:00:13]} Ngf6 8. Ng3 {[%emt 0:00:07]} Be7 {[%emt 0:00:45]} 9. Re1 {[%emt 0:02:01]} O-O {[%emt 0:14:17]} 10. c3 {[%emt 0:00:03]} Bxf3 {[%emt 0:01:21]} 11. Qxf3 {[%emt 0:03:15]} c5 {[%emt 0:00:43]} 12. dxc5 {[%emt 0:00:06]} Nxc5 {[%emt 0:03:05]} 13. Bc2 {[%emt 0:09:21]} Qd5 {[%emt 0:03:16]} 14. Qe2 {[%emt 0:05:28]} a5 {[%emt 0:01:18]} 15. Rd1 {[%emt 0:00:47]} Qc6 {[%emt 0:02:54]} 16. Bg5 {[%emt 0:08:25]} Rfd8 {[%emt 0:23:36]} 17. Nh5 {[%emt 0:11:29]} Ncd7 18. Nxf6+ {[%emt 0:00:02]} Nxf6 {[%emt 0:06:17]} 19. h3 h6 {[%emt 0:05:40]} 20. Bh4 {[%emt 0:04:13]} Qb6 21. Ba4 {[%emt 0:04:26]} Qc7 {[%emt 0:08:53]} 22. Bg3 Bd6 {[%emt 0:00:16]} 23. Rxd6 {[%emt 0:01:15]} Rxd6 {[%emt 0:00:06]} 24. Bxd6 {[%emt 0:00:22]} Qxd6 25. Rd1 {[%emt 0:00:17]} Qb6 {[%emt 0:01:57]} 26. Qb5 {[%emt 0:00:02]} Qxb5 {[%emt 0:01:43]} 27. Bxb5 Kf8 28. Be2 {[%emt 0:05:43]} Ke7 {[%emt 0:01:21]} 29. Bf3 {[%emt 0:00:00]} Rb8 {[%emt 0:01:54]} 30. Kf1 {[%emt 0:05:07]} Nd7 {[%emt 0:01:44]} 31. Rd4 {[%emt 0:03:20]} Ne5 32. Be4 {[%emt 0:00:21]} g5 {[%emt 0:01:01]} 33. Ke2 {[%emt 0:00:06]} f5 {[%emt 0:03:05]} 34. Bc2 {[%emt 0:01:15]} Nc6 {[%emt 0:03:46]} 35. Rd1 h5 36. g3 {[%emt 0:04:05]} h4 {[%emt 0:00:48]} 37. gxh4 {[%emt 0:00:08]} gxh4 {[%emt 0:00:04]} 38. Rg1 {[%emt 0:00:21]} Kf6 {[%emt 0:00:47]} 39. f4 {[%emt 0:02:03]} Rd8 40. Bb3 {Ke5} 1/2-1/2

[Event "XLV Badalona Open 2019"]
[Site "Badalona"]
[Date "2019.08.09"]
[Round "8.4"]
[White "Hernandez, Cristian Andres"]
[Black "Lorenzo De La Riva, Lazaro"]
[Result "1/2-1/2"]
[ECO "D21"]
[WhiteElo "2355"]
[BlackElo "2373"]
[Annotator "NA"]
[PlyCount "99"]
[EventDate "2019.08.02"]
[EventType "swiss"]
[EventCountry "ESP"]
[SourceTitle "playchess.com"]
[Source "ChessBase"]
[SourceQuality "1"]
[TimeControl "5400+30"]

1. d4 {[%emt 0:00:34]} d5 {[%emt 0:00:00]} 2. c4 {[%emt 0:00:40]} dxc4 {[%emt 0:00:48]} 3. Nf3 {[%emt 0:01:28]} a6 4. e3 Bg4 {[%emt 0:02:31]} 5. Bxc4 {[%emt 0:00:55]} e6 {[%emt 0:00:00]} 6. h3 {[%emt 0:04:16]} Bh5 {[%emt 0:01:17]} 7. Nc3 {[%emt 0:05:31]} Nf6 {[%emt 0:00:39]} 8. g4 {[%emt 0:01:25]} Bg6 {[%emt 0:15:15]} 9. Ne5 Nbd7 {[%emt 0:00:02]} 10. Nxg6 {[%emt 0:06:26]} hxg6 {[%emt 0:07:57]} 11. Qf3 {[%emt 0:09:15]} b5 {[%emt 0:09:03]} 12. Bb3 {[%emt 0:02:26]} c5 {[%emt 0:10:50]} 13. g5 {[%emt 0:10:50]} Nh5 {[%emt 0:06:09]} 14. Bd2 {[%emt 0:00:25]} Rb8 {[%emt 0:07:30]} 15. h4 {[%emt 0:12:19]} Qb6 {[%emt 0:02:53]} 16. dxc5 {[%emt 0:07:32]} Bxc5 {[%emt 0:05:33]} 17. Ne2 {[%emt 0:03:15]} O-O {[%emt 0:02:27]} 18. Rd1 {[%emt 0:07:04]} Rbd8 {[%emt 0:00:15]} 19. Bc3 {[%emt 0:00:38]} b4 {[%emt 0:00:48]} 20. Bd4 {[%emt 0:01:15]} Bxd4 {[%emt 0:02:26]} 21. Nxd4 {[%emt 0:09:11]} Nc5 {[%emt 0:00:13]} 22. Qc6 {[%emt 0:00:35]} Qa5 {[%emt 0:01:45]} 23. O-O {[%emt 0:03:00]} Rc8 {[%emt 0:05:59]} 24. Qd6 {[%emt 0:08:43]} Ne4 {[%emt 0:04:07]} 25. Qd7 {[%emt 0:00:51]} Nxg5 {[%emt 0:00:14]} 26. hxg5 {[%emt 0:00:47]} Qxg5+ {[%emt 0:08:03]} 27. Kh2 {[%emt 0:00:05]} Qh4+ {[%emt 0:02:25]} 28. Kg2 {[%emt 0:00:13]} Qg4+ {[%emt 0:01:03]} 29. Kh2 {[%emt 0:00:06]} Qh4+ {[%emt 0:01:30]} 30. Kg2 {[%emt 0:01:05]} Qe4+ {[%emt 0:00:10]} 31. Kh2 {[%emt 0:00:40]} Rfd8 {[%emt 0:00:05]} 32. Qe7 {[%emt 0:02:03]} Nf6 {[%emt 0:00:50]} 33. Nxe6 {[%emt 0:00:14]} Qh4+ {[%emt 0:00:38]} 34. Kg2 {[%emt 0:00:10]} Qg4+ {[%emt 0:01:15]} 35. Kh2 {[%emt 0:00:08]} Re8 {[%emt 0:00:14]} 36. Qd6 fxe6 37. Rd4 {[%emt 0:02:27]} Qh5+ {[%emt 0:00:32]} 38. Kg2 {[%emt 0:00:00]} Qg5+ {[%emt 0:00:42]} 39. Qg3 {[%emt 0:00:09]} Qxg3+ {[%emt 0:00:13]} 40. Kxg3 {[%emt 0:00:47]} a5 {[%emt 0:00:07]} 41. Kf3 {[%emt 0:00:20]} Kf7 {[%emt 0:00:21]} 42. Rd6 {[%emt 0:00:30]} Rc5 {[%emt 0:00:13]} 43. Rfd1 {[%emt 0:00:39]} g5 {[%emt 0:01:18]} 44. Ke2 {[%emt 0:00:15]} g4 {[%emt 0:00:15]} 45. R1d4 {[%emt 0:00:45]} Re5 {[%emt 0:00:20]} 46. Rc6 {[%emt 0:01:00]} Re7 {[%emt 0:00:21]} 47. Bc2 Ra7 {[%emt 0:00:06]} 48. Bb3 {[%emt 0:01:07]} Re7 {[%emt 0:01:37]} 49. Bc2 {[%emt 0:00:00]} Ra7 {[%emt 0:01:53]} 50. Bb3 1/2-1/2

[Event "XLV Badalona Open 2019"]
[Site "Badalona"]
[Date "2019.08.09"]
[Round "8.5"]
[White "Munoz, Miguel"]
[Black "Mateus, Alejandro"]
[Result "1/2-1/2"]
[ECO "B00"]
[WhiteElo "2511"]
[BlackElo "2334"]
[Annotator "ChessBase"]
[PlyCount "42"]
[EventDate "2019.08.02"]
[EventType "swiss"]
[EventCountry "ESP"]
[SourceTitle "playchess.com"]
[Source "ChessBase"]
[SourceQuality "1"]
[TimeControl "5400+30"]

1. e4 {[%emt 0:06:30]} d6 {[%emt 0:00:24]} 2. g3 {[%emt 0:01:33]} d5 {[%emt 0:00:11]} 3. exd5 {[%emt 0:00:13]} Qxd5 {[%emt 0:00:18]} 4. Nf3 {[%emt 0:00:08]} Bg4 {[%emt 0:01:14]} 5. Be2 Nc6 6. h3 {[%emt 0:09:51]} Bh5 {[%emt 0:00:48]} 7. Nc3 {[%emt 0:01:55]} Qd7 {[%emt 0:00:13]} 8. d4 {[%emt 0:04:12]} e6 {[%emt 0:01:32]} 9. Bf4 Nf6 {[%emt 0:07:39]} 10. g4 {[%emt 0:00:46]} Bg6 {[%emt 0:14:55]} 11. Bb5 {[%emt 0:12:54]} Bb4 {[%emt 0:04:33]} 12. Ne5 Bxc3+ 13. bxc3 {[%emt 0:03:03]} Qd5 {[%emt 0:00:36]} 14. Bxc6+ {[%emt 0:00:08]} bxc6 {[%emt 0:00:07]} 15. O-O {[%emt 0:08:51]} Rd8 {[%emt 0:13:14]} 16. c4 {[%emt 0:07:18]} Qe4 {[%emt 0:14:00]} 17. Be3 {[%emt 0:01:55]} h5 {[%emt 0:08:00]} 18. g5 {[%emt 0:13:01]} Ng4 {[%emt 0:06:20]} 19. Qf3 Nxe5 {[%emt 0:00:04]} 20. Qxe4 {[%emt 0:00:40]} Bxe4 {[%emt 0:01:52]} 21. dxe5 a6 1/2-1/2

[Event "XLV Badalona Open 2019"]
[Site "Badalona"]
[Date "2019.08.09"]
[Round "8.6"]
[White "Sreeshwan Maralakshikari"]
[Black "Panesso Rivera, Henry"]
[Result "1/2-1/2"]
[ECO "D45"]
[WhiteElo "2461"]
[BlackElo "2380"]
[Annotator "ChessBase"]
[PlyCount "51"]
[EventDate "2019.08.02"]
[EventType "swiss"]
[EventCountry "ESP"]
[SourceTitle "playchess.com"]
[Source "ChessBase"]
[SourceQuality "1"]
[TimeControl "5400+30"]

1. d4 {[%emt 0:00:00]} d5 {[%emt 0:00:16]} 2. c4 {[%emt 0:00:00]} c6 {[%emt 0:00:22]} 3. Nc3 {[%emt 0:00:00]} Nf6 {[%emt 0:00:19]} 4. e3 {[%emt 0:00:00]} e6 5. Nf3 {[%emt 0:00:00]} Nbd7 {[%emt 0:01:04]} 6. Qc2 {[%emt 0:00:00]} Bd6 {[%emt 0:01:27]} 7. b3 {[%emt 0:07:11]} Qe7 {[%emt 0:01:04]} 8. Bd3 {[%emt 0:00:11]} h6 {[%emt 0:03:40]} 9. Bb2 {[%emt 0:16:50]} a6 {[%emt 0:19:49]} 10. h3 {[%emt 0:07:09]} b5 11. c5 {[%emt 0:00:03]} Bc7 {[%emt 0:01:13]} 12. b4 {[%emt 0:02:08]} a5 {[%emt 0:06:04]} 13. a3 {[%emt 0:03:38]} O-O 14. Ne2 {[%emt 0:00:07]} e5 {[%emt 0:07:34]} 15. dxe5 {[%emt 0:15:59]} Nxe5 {[%emt 0:00:00]} 16. Nxe5 {[%emt 0:00:11]} Bxe5 {[%emt 0:01:05]} 17. O-O {[%emt 0:00:03]} Bxb2 {[%emt 0:07:34]} 18. Qxb2 {[%emt 0:07:12]} a4 {[%emt 0:12:52]} 19. Ng3 h5 {[%emt 0:00:09]} 20. Qd4 {[%emt 0:08:22]} Re8 {[%emt 0:00:37]} 21. Rae1 {[%emt 0:05:37]} Qe5 {[%emt 0:01:35]} 22. f4 {[%emt 0:00:03]} Qxd4 {[%emt 0:00:38]} 23. exd4 {[%emt 0:00:04]} Rxe1 {[%emt 0:00:38]} 24. Rxe1 Kf8 25. Re5 g6 26. Nh1 {Ke8} 1/2-1/2

[Event "XLV Badalona Open 2019"]
[Site "Badalona"]
[Date "2019.08.09"]
[Round "8.7"]
[White "Perez Mitjans, Orelvis"]
[Black "Cruz, Filemon"]
[Result "0-1"]
[ECO "C19"]
[WhiteElo "2416"]
[BlackElo "2304"]
[Annotator "NA"]
[PlyCount "113"]
[EventDate "2019.08.02"]
[EventType "swiss"]
[EventCountry "ESP"]
[SourceTitle "playchess.com"]
[Source "ChessBase"]
[SourceQuality "1"]
[TimeControl "5400+30"]

1. e4 {[%emt 0:04:27]} e6 2. d4 {[%emt 0:00:06]} d5 {[%emt 0:00:44]} 3. Nc3 {[%emt 0:00:06]} Bb4 {[%emt 0:00:52]} 4. e5 {[%emt 0:00:04]} c5 {[%emt 0:00:22]} 5. a3 {[%emt 0:00:05]} Bxc3+ {[%emt 0:00:58]} 6. bxc3 {[%emt 0:01:28]} Ne7 {[%emt 0:00:27]} 7. Nf3 {[%emt 0:00:19]} Qc7 {[%emt 0:04:19]} 8. Bd3 {[%emt 0:00:18]} b6 {[%emt 0:00:27]} 9. O-O {[%emt 0:06:07]} Ba6 {[%emt 0:00:11]} 10. Bxa6 {[%emt 0:00:30]} Nxa6 {[%emt 0:01:04]} 11. Qd3 {[%emt 0:03:46]} Nb8 {[%emt 0:06:27]} 12. a4 {[%emt 0:21:08]} Nd7 {[%emt 0:02:35]} 13. Ng5 {[%emt 0:04:27]} h6 {[%emt 0:01:18]} 14. Nh3 {[%emt 0:00:23]} Rc8 {[%emt 0:07:21]} 15. Ba3 {[%emt 0:01:53]} O-O {[%emt 0:00:42]} 16. Nf4 {[%emt 0:08:00]} Rfe8 {[%emt 0:00:33]} 17. Qh3 {[%emt 0:19:57]} Ng6 {[%emt 0:01:30]} 18. Nd3 {[%emt 0:00:52]} cxd4 {[%emt 0:07:38]} 19. f4 {[%emt 0:00:34]} Qxc3 {[%emt 0:18:40]} 20. Bd6 {[%emt 0:04:20]} Qd2 {[%emt 0:03:58]} 21. Rae1 {[%emt 0:02:40]} Nc5 {[%emt 0:01:34]} 22. Nxc5 {[%emt 0:00:11]} bxc5 {[%emt 0:01:59]} 23. f5 {[%emt 0:00:12]} exf5 {[%emt 0:24:34]} 24. Qxf5 {[%emt 0:06:45]} Nh8 {[%emt 0:04:10]} 25. Rb1 {[%emt 0:06:49]} c4 26. Rb5 {[%emt 0:00:12]} d3 {[%emt 0:03:05]} 27. cxd3 {[%emt 0:02:04]} c3 {[%emt 0:02:13]} 28. Rbb1 {[%emt 0:03:20]} Re6 {[%emt 0:00:59]} 29. Qf3 {[%emt 0:00:01]} c2 {[%emt 0:00:47]} 30. Rbc1 {[%emt 0:01:02]} d4 {[%emt 0:00:52]} 31. Kh1 {[%emt 0:01:33]} Rg6 32. Qb7 {[%emt 0:00:14]} Kh7 {[%emt 0:02:31]} 33. g3 Re8 {[%emt 0:01:09]} 34. Qc6 {[%emt 0:01:20]} Rxe5 {[%emt 0:00:17]} 35. Rxc2 {[%emt 0:01:40]} Qxd3 {[%emt 0:00:28]} 36. Rcc1 {[%emt 0:00:04]} Ree6 {[%emt 0:00:45]} 37. Rfd1 {[%emt 0:00:03]} Qe3 38. Qa8 {[%emt 0:00:04]} Rxd6 {[%emt 0:01:30]} 39. Rc8 Rgf6 {[%emt 0:00:18]} 40. Rxh8+ {[%emt 0:00:40]} Kg6 {[%emt 0:00:00]} 41. Re8 {[%emt 0:00:37]} Qf3+ {[%emt 0:00:00]} 42. Qxf3 {[%emt 0:00:12]} Rxf3 {[%emt 0:00:15]} 43. Re4 {[%emt 0:00:00]} d3 {[%emt 0:00:35]} 44. Rd2 {[%emt 0:00:02]} Rf5 {[%emt 0:00:29]} 45. Kg2 Rfd5 {[%emt 0:00:25]} 46. Kf3 {[%emt 0:01:20]} f5 {[%emt 0:00:39]} 47. Rb4 {[%emt 0:00:41]} Kf6 {[%emt 0:00:14]} 48. Rb3 {[%emt 0:00:20]} g5 {[%emt 0:00:45]} 49. Ke3 {[%emt 0:00:43]} Ke5 {[%emt 0:00:26]} 50. Rb4 {[%emt 0:00:21]} Rd4 {[%emt 0:00:21]} 51. Rb5+ {[%emt 0:00:13]} R6d5 {[%emt 0:00:30]} 52. Rb8 {[%emt 0:00:30]} Re4+ 53. Kf3 g4+ {[%emt 0:00:38]} 54. Kf2 {[%emt 0:00:06]} Rxa4 {[%emt 0:00:11]} 55. Rh8 Kd4 {[%emt 0:00:23]} 56. Rxh6 {[%emt 0:00:09]} Kc3 {[%emt 0:00:20]} 57. Rd1 {[%emt 0:00:00]} 0-1

[Event "XLV Badalona Open 2019"]
[Site "Badalona"]
[Date "2019.08.09"]
[Round "8.8"]
[White "Moncada Correa, Sara"]
[Black "Bru Rullo, Samuel"]
[Result "1/2-1/2"]
[ECO "A61"]
[WhiteElo "1909"]
[BlackElo "1867"]
[Annotator "NA"]
[PlyCount "42"]
[EventDate "2019.08.02"]
[EventType "swiss"]
[EventCountry "ESP"]
[SourceTitle "playchess.com"]
[Source "ChessBase"]
[SourceQuality "1"]
[TimeControl "5400+30"]

1. d4 Nf6 {[%emt 0:03:01]} 2. c4 {[%emt 0:00:41]} e6 {[%emt 0:00:51]} 3. Nf3 {[%emt 0:00:50]} c5 {[%emt 0:00:19]} 4. d5 exd5 {[%emt 0:00:09]} 5. cxd5 {[%emt 0:00:49]} d6 {[%emt 0:00:51]} 6. Nc3 g6 {[%emt 0:00:38]} 7. e4 {[%emt 0:01:40]} Bg7 {[%emt 0:00:15]} 8. h3 {[%emt 0:00:44]} O-O {[%emt 0:00:27]} 9. Bd3 {[%emt 0:02:31]} Re8 {[%emt 0:00:17]} 10. O-O {[%emt 0:01:16]} a6 {[%emt 0:08:09]} 11. a4 {[%emt 0:03:48]} Nbd7 {[%emt 0:05:39]} 12. Re1 {[%emt 0:05:01]} Nh5 {[%emt 0:01:19]} 13. Qc2 Ne5 {[%emt 0:00:20]} 14. Nxe5 {[%emt 0:01:12]} Bxe5 {[%emt 0:03:51]} 15. Ne2 {[%emt 0:14:30]} Qh4 {[%emt 0:29:41]} 16. Rf1 Bxh3 {[%emt 0:00:17]} 17. gxh3 {[%emt 0:08:35]} Qxh3 {[%emt 0:10:07]} 18. f4 {[%emt 0:07:34]} Ng3 {[%emt 0:06:41]} 19. Re1 {[%emt 0:04:51]} Nxe2+ {[%emt 0:06:46]} 20. Qxe2 {[%emt 0:00:47]} Qg3+ {[%emt 0:00:44]} 21. Kf1 Qh3+ 1/2-1/2

[Event "XLV Badalona Open 2019"]
[Site "Badalona"]
[Date "2019.08.09"]
[Round "8.9"]
[White "Malonda Rey, Albert"]
[Black "Bedoya Rosales, Luis"]
[Result "1-0"]
[ECO "A36"]
[WhiteElo "1806"]
[BlackElo "1924"]
[Annotator "NA"]
[PlyCount "25"]
[EventDate "2019.08.02"]
[EventType "swiss"]
[EventCountry "ESP"]
[SourceTitle "playchess.com"]
[Source "ChessBase"]
[SourceQuality "1"]
[TimeControl "5400+30"]

1. c4 {[%emt 0:00:00]} g6 {[%emt 0:03:26]} 2. Nc3 {[%emt 0:00:00]} Bg7 {[%emt 0:00:21]} 3. g3 {[%emt 0:00:00]} c5 {[%emt 0:00:06]} 4. Bg2 {[%emt 0:00:19]} Nc6 {[%emt 0:05:01]} 5. e4 {[%emt 0:00:23]} d6 {[%emt 0:01:39]} 6. Nge2 {[%emt 0:00:44]} e6 {[%emt 0:00:50]} 7. O-O {[%emt 0:00:50]} Nge7 {[%emt 0:00:34]} 8. d3 {[%emt 0:01:06]} O-O {[%emt 0:00:21]} 9. Be3 {[%emt 0:11:12]} Nd4 {[%emt 0:06:14]} 10. Rb1 {[%emt 0:00:41]} Nec6 {[%emt 0:04:40]} 11. a3 {[%emt 0:02:21]} Rb8 {[%emt 0:03:28]} 12. b4 {[%emt 0:05:55]} b6 13. Qd2 1-0

[Event "XLV Badalona Open 2019"]
[Site "Badalona"]
[Date "2019.08.09"]
[Round "8.10"]
[White "Picazo Palacios, Jose Maria"]
[Black "Alonso Gomez, Raul"]
[Result "1/2-1/2"]
[ECO "A40"]
[WhiteElo "1604"]
[BlackElo "1879"]
[Annotator "NA"]
[PlyCount "72"]
[EventDate "2019.08.02"]
[EventType "swiss"]
[EventCountry "ESP"]
[SourceTitle "playchess.com"]
[Source "ChessBase"]
[SourceQuality "1"]
[TimeControl "5400+30"]

1. d4 g6 2. c4 Bg7 3. Nc3 f5 4. g3 Nf6 5. Bg2 d6 6. Nh3 O-O 7. O-O e5 8. dxe5 dxe5 9. Qb3 c6 10. c5+ Kh8 11. Rd1 Qe7 12. Rd6 Na6 13. Be3 f4 14. gxf4 Bxh3 15. Bxh3 exf4 16. Bd4 Rad8 17. Rd1 Nd5 18. Nxd5 Qg5+ 19. Kf1 Bxd4 20. Rxd4 Rxd6 21. cxd6 Qe5 22. Re4 Qxe4 23. Qc3+ Kg8 24. Nf6+ Rxf6 25. f3 Qb1+ 26. Kf2 Rxd6 27. Qe5 Rd5 28. Be6+ Kf8 29. Qf6+ Ke8 30. Qf7+ Kd8 31. Qxb7 Rd1 32. Bh3 Qc1 33. Qc8+ Ke7 34. Qe6+ Kf8 35. Qf6+ Ke8 36. Qe6+ Kd8 1/2-1/2